Cogmind - Beta 14 @@@ ROGUE MODE // 2024.08.26 @ 20:21:14 Player: Daffa0360 Result: Self-destructed Performance ------------- Evolutions (4) 2000 Regions Visited (5) 1000 Robots Destroyed (25) 125 Value Destroyed (867) 867 Prototype IDs (11) 220 Alien Tech Used (0) 0 Bonus (700) 700 TOTAL SCORE: 4912 Bonus ------- Entered Garrisons 200 Used RIF Installer 500 Cogmind --------- Core Integrity 675/850 Matter 209/300 Energy 99/100 System Corruption 0% Temperature Cool (18) Movement Core (150) Ox2 Location -6/Garrison Parts ------- > --- POWER (1) -------- (None) > --- PROPULSION (2) --- (None) > --- UTILITY (10) ----- Small Storage Unit Enhanced Optical Array Advanced Signal Interpreter Makeshift Light Armor Plating Makeshift Hacking Suite > --- WEAPON (2) ------- (None) > --- INVENTORY (8) ---- Relay Coupler [Duelist] (31) Powered Cannon Light Assault Rifle Improved Datajack Plasma Cutter Peak State ------------ > --- POWER ------------ (None) > --- PROPULSION ------- Aluminum Leg Titanium Leg > --- UTILITY ---------- Small Storage Unit Enhanced Optical Array Advanced Signal Interpreter Makeshift Light Armor Plating Makeshift Hacking Suite System Shield > --- WEAPON ----------- Light Assault Rifle Makeshift Sword > --- INVENTORY -------- Powered Cannon Battle Cannon Improved Datajack Plasma Cutter [Rating: 33] Favorites ----------- Power Light Ion Engine Engine Light Ion Engine Propulsion Aluminum Leg Leg Aluminum Leg Wheel Wheel Utility Small Storage Unit Device Seismic Detector Storage Small Storage Unit Processor Enhanced Optical Array Hackware Makeshift Hacking Suite Protection Makeshift Light Armor Plating Weapon Makeshift Sword Ballistic Gun Assault Rifle Ballistic Cannon Battle Cannon Special Weapon Mining Laser Slashing Weapon Makeshift Sword Special Melee Weapon Improved Datajack Build | -11 -10 -10 -8 -6 -6 ------- Run | Yrd Mat Sub Rec Fac Gar Slots Evolved 8 | . . . . 8 . Power . | . . . . . . Propulsion . | . . . . . . Utility 8 | . . . . 8 . Weapon . | . . . . . . Parts Attached 31 | . 1 11 11 4 4 Power 3 | . . 1 2 . . Engine 3 | . . 1 2 . . Core . | . . . . . . Reactor . | . . . . . . Propulsion 5 | . . 2 3 . . Treads . | . . . . . . Leg 3 | . . . 3 . . Wheel 2 | . . 2 . . . Hover . | . . . . . . Flight . | . . . . . . Utility 7 | . . 2 1 4 . Device 1 | . . 1 . . . Storage . | . . . . . . Processor 2 | . . . . 2 . Hackware 2 | . . . . 2 . Protection 2 | . . 1 1 . . Artifact . | . . . . . . Weapon 16 | . 1 6 5 . 4 Energy Gun . | . . . . . . Energy Cannon . | . . . . . . Ballistic Gun 3 | . . 2 1 . . Ballistic Cannon 4 | . . 2 1 . 1 Launcher . | . . . . . . Special Weapon 3 | . 1 1 1 . . Impact Weapon . | . . . . . . Slashing Weapon 5 | . . 1 2 . 2 Piercing Weapon . | . . . . . . Special Melee Weapon 1 | . . . . . 1 Unidentified Prototypes . | . . . . . . Parts Lost 9 | . . 1 3 . 5 Power 1 | . . . 1 . . Propulsion 4 | . . . 2 . 2 Utility 2 | . . 1 . . 1 Weapon 2 | . . . . . 2 Highest Loss Streak 3 | . . 1 2 . 3 To Critical Strikes . | . . . . . . Average Slot Usage (%) 91 | . 85 99 92 51 45 Engine 10 | . 14 14 8 . . Leg 19 | . 28 16 26 13 3 Wheel 6 | . . 11 . . . Device 5 | . . 10 . . . Storage 13 | . 14 14 14 6 6 Processor 1 | . . . . 4 13 Protection 6 | . . 2 13 6 6 Ballistic Gun 12 | . 24 15 9 6 . Ballistic Cannon 4 | . . 2 9 . . Special Weapon 1 | . 3 3 . . . Slashing Weapon 7 | . . 7 8 6 5 Peak Build Rating 33 | 6 6 15 19 33 33 Average Rating 13 | 6 6 10 16 23 26 On Entrance 13 | 6 6 6 13 16 33 Naked Turns . | . . . . . . Heaviest Build 24 | 11 11 19 24 12 12 Greatest Support 27 | 20 20 20 27 27 27 Greatest Overweight (x) 3 | . . . 2 . 3 Average Overweight (x) . | . . . . . 2 Largest Inventory Capacity 8 | 8 8 8 8 8 8 Average Capacity 8 | 8 8 8 8 8 8 Most Carried 8 | 8 6 8 8 8 7 Average Carried 7 | 6 6 7 7 6 6 Final Capacity 8 | 8 8 8 8 8 8 Final Carried 7 | 6 6 7 7 5 6 Class Distribution -------------------- 96% | Mutant 3% | Hacker-Mutant Dominant Class ---------------- Mutant | -10/Materials Mutant | -10/Subcaves Mutant | -8/Recycling Hacker-Mutant | -6/Factory Mutant | -6/Garrison Resources | -11 -10 -10 -8 -6 -6 ----------- Run | Yrd Mat Sub Rec Fac Gar Matter Collected 699 | 240 . 230 107 . 122 Remotely . | . . . . . . Salvage Created 1003 | 143 . 185 553 . 122 Parts 41 | 7 . 15 14 . 5 Haulers Intercepted 1 | . . . 1 . . Recyclers Shooed 1 | . . . 1 . . Parts Field Recycled . | . . . . . . Retrieved Matter . | . . . . . . Parts Self-Destructed 15 | . . 15 . . . Prevented . | . . . . . . Kills | -11 -10 -10 -8 -6 -6 ------- Run | Yrd Mat Sub Rec Fac Gar Combat Hostiles Destroyed 16 | . . 7 6 . 3 Melee 9 | . . . 6 . 3 Guns 3 | . . 3 . . . Cannons 4 | . . 4 . . . Classes Destroyed 9 | 2 . 3 4 . . Tunneler 3 | 3 . . . . . Hauler 1 | . . . 1 . . Recycler 3 | 1 . . 2 . . Turret 2 | . . 2 . . . Swarmer 6 | . . 4 . . 2 Sentry 4 | . . . 3 . 1 Demolisher 1 | . . . 1 . . Hunter 2 | . . . 2 . . Subdweller 3 | . . 3 . . . Best Kill Streak 7 | 2 . 3 7 . 1 Combat Bots Only 4 | . . 3 4 . 1 Max Kills in Single Turn 1 | 1 . 1 1 . 1 Gunslinging . | . . . . . . Exploded . | . . . . . . Melee 1 | . . . 1 . 1 Uniques/NPCs Destroyed . | . . . . . . Combat | -11 -10 -10 -8 -6 -6 -------- Run | Yrd Mat Sub Rec Fac Gar Hostile Shots Fired 163 | . . 56 26 3 78 Missed 57 | . . 22 5 1 29 Damage Taken 1363 | . . 437 397 28 501 Core 306 | . . 88 43 . 175 Absorbed by Shields . | . . . . . . Core Remaining (%) 73 | 100 . . 47 . . Volleys Fired 65 | 10 4 37 12 . 2 Largest 2 | 2 1 2 2 . 1 Hottest 100 | 40 100 100 59 . 39 Shots Fired 112 | 20 4 62 24 . 2 Gun 63 | 20 . 31 12 . . Cannon 33 | . . 19 12 . 2 Launcher . | . . . . . . Special 16 | . 4 12 . . . Kinetic 96 | 20 . 50 24 . 2 Thermal 16 | . 4 12 . . . Explosive . | . . . . . . Electromagnetic . | . . . . . . Robot Hit Streak 9 | 9 . 7 8 . 2 Robot Miss Streak 5 | 5 . 3 4 . . Penetration Max . | . . . . . . Secondary Targets 1 | . . 1 . . . Max Gunslinging Chain 1 | . . 1 . . . Shots Hit Robots 80 | 9 . 26 35 . 10 Core Hits 35 | 6 . 14 10 . 5 Critical Kills . | . . . . . . Critical Parts Destroyed . | . . . . . . Critical Strikes 2 | . . . 1 . 1 Blast 1 | . . . 1 . . Sever 1 | . . . . . 1 Melee Attacks 105 | . . 25 63 . 17 Impact . | . . . . . . Slashing 105 | . . 25 63 . 17 Piercing . | . . . . . . Sneak Attacks 10 | . . . 10 . . Combat Hostiles 7 | . . . 7 . . Follow-up Attacks . | . . . . . . Damage Inflicted 2145 | 79 . 386 1358 . 322 Guns 307 | 79 . 184 44 . . Cannons 365 | . . 202 120 . 43 Explosions . | . . . . . . Melee 1473 | . . . 1194 . 279 Ramming . | . . . . . . Kinetic 672 | 79 . 386 164 . 43 Thermal . | . . . . . . Explosive . | . . . . . . Electromagnetic . | . . . . . . Impact . | . . . . . . Slashing 1473 | . . . 1194 . 279 Piercing . | . . . . . . Highest Corruption 5 | . . . 5 . . Average Corruption 5 | . . . 5 . . Corruption Purged . | . . . . . . Corruption Blocked . | . . . . . . Effects 15 | . . . 15 . . Message Errors 3 | . . . 3 . . Matter Fused 4 | . . . 4 . . Heat Flow Errors 2 | . . . 2 . . Energy Discharges 3 | . . . 3 . . Parts Rejected 1 | . . . 1 . . Data Loss (minor) 1 | . . . 1 . . Alerts 1 | . . . 1 . . Overload Shots . | . . . . . . Overflow Damage 116 | . . . 107 . 9 Projectiles 5 | . . . 5 . . Explosions . | . . . . . . Melee 111 | . . . 102 . 9 Knockbacks 2 | . . 2 . . . Impact . | . . . . . . Kinetic 2 | . . 2 . . . Secondary . | . . . . . . Self-Inflicted Damage . | . . . . . . Shots . | . . . . . . Rammed . | . . . . . . Targets Rammed 1 | . . . 1 . . Kicked 1 | . . . 1 . . Crushed . | . . . . . . Highest Temperature 169 | . 60 2 169 . . Average Temperature 34 | . 26 2 38 . . Received Heat Transfer 324 | . . 144 90 . 90 Siege Activations . | . . . . . . Robots Corrupted . | . . . . . . Combat Hostiles . | . . . . . . Parts Fried . | . . . . . . Impact Corruptions . | . . . . . . Robots Melted . | . . . . . . Combat Hostiles . | . . . . . . Parts Melted . | . . . . . . Heat Transferred . | . . . . . . Parts Sabotaged . | . . . . . . Parts Stolen . | . . . . . . Parts Stripped . | . . . . . . Power Chain Reactions . | . . . . . . Alert | -11 -10 -10 -8 -6 -6 ------- Run | Yrd Mat Sub Rec Fac Gar Peak Influence 164 | 20 13 . 164 . 146 Initial 64 | . 13 . 64 . . Average 51 | 12 13 . 53 . 82 Maximum Alert Level . | . . . . . . Low Security (%) 100 | 100 100 . 100 100 100 Level 1 . | . . . . . . Level 2 . | . . . . . . Level 3 . | . . . . . . Level 4 . | . . . . . . Level 5 . | . . . . . . High Security . | . . . . . . Max Security . | . . . . . . Squads Dispatched 1 | . 1 . . . . Investigation 1 | . 1 . . . . Extermination . | . . . . . . Reinforcement . | . . . . . . Assault . | . . . . . . Garrison . | . . . . . . Intercept . | . . . . . . Searches Triggered . | . . . . . . Construction Impeded . | . . . . . . Haulers Reinforced . | . . . . . . Active Scanning Responses . | . . . . . . Cargo Convoy Interrupts . | . . . . . . Stealth | -11 -10 -10 -8 -6 -6 --------- Run | Yrd Mat Sub Rec Fac Gar Distress Signals . | . . . . . . Communications Jammed . | . . . . . . Distress Signals . | . . . . . . Times Spotted 36 | . . 18 9 1 8 Peak Tracking Total 6 | . . 6 3 1 3 Tactical Retreats 9 | . . 2 4 . 3 Traps | -11 -10 -10 -8 -6 -6 ------- Run | Yrd Mat Sub Rec Fac Gar Traps Triggered 2 | . . 1 . . 1 Indirectly . | . . . . . . Trap Hack Attempts . | . . . . . . Triggered . | . . . . . . Disarmed . | . . . . . . Reprogrammed . | . . . . . . Reused 1 | . . 1 . . . Traps Extracted . | . . . . . . Installed 1 | . . 1 . . . Triggered 1 | . . 1 . . . Most Traps Carried 1 | . . 1 . . . Machines | -11 -10 -10 -8 -6 -6 ---------- Run | Yrd Mat Sub Rec Fac Gar Machines Disabled 4 | . . 3 . . 1 Max in Single Turn 1 | . . 1 . . 1 Garrison Relay 1 | . . . . . 1 Machines Repaired . | . . . . . . Machines Dismantled . | . . . . . . Machines Sabotaged . | . . . . . . Overloaded Fab Kills . | . . . . . . Hacking | -11 -10 -10 -8 -6 -6 --------- Run | Yrd Mat Sub Rec Fac Gar Machines Accessed 9 | . 1 3 4 1 . Terminals 5 | . 1 . 4 . . Fabricators . | . . . . . . Repair Stations . | . . . . . . Recycling Units . | . . . . . . Scanalyzers . | . . . . . . Garrison Access 1 | . . . . 1 . Total Hacks 15 | . 2 4 7 2 . Successful 7 | . . 4 2 1 . Failed 8 | . 2 . 5 1 . Catastrophic 1 | . 1 . . . . Database Lockouts . | . . . . . . Manual 3 | . . . 3 . . Terminals 9 | . 2 . 7 . . Fabricators . | . . . . . . Repair Stations . | . . . . . . Recycling Units . | . . . . . . Scanalyzers . | . . . . . . Garrison Access 2 | . . . . 2 . Terminal Hacks 6 | . . 4 2 . . Record 1 | . . 1 . . . Open Door 1 | . . 1 . . . Recycling Unit Index 1 | . . . 1 . . Alert Level 1 | . . . 1 . . Derelict Proto ID Bank 1 | . . 1 . . . Release Object 1 | . . 1 . . . Fabricator Hacks . | . . . . . . Repair Station Hacks . | . . . . . . Recycling Unit Hacks . | . . . . . . Scanalyzer . | . . . . . . Garrison Access Hacks 1 | . . . . 1 . Unlock Access 1 | . . . . 1 . Unauthorized Hacks . | . . . . . . Terminals . | . . . . . . Fabricators . | . . . . . . Repair Stations . | . . . . . . Recycling Units . | . . . . . . Scanalyzers . | . . . . . . Garrison Access . | . . . . . . Data Cores Recovered . | . . . . . . Used . | . . . . . . Hacking Detections 5 | . 1 . 4 . . Full Trace Events 1 | . 1 . . . . Feedback Events . | . . . . . . Feedback Blocked . | . . . . . . Robot Schematics Acquired . | . . . . . . Robots Built . | . . . . . . Authchips . | . . . . . . Time . | . . . . . . Total Robot Build Rating . | . . . . . . Part Schematics Acquired . | . . . . . . Parts Built . | . . . . . . Authchips . | . . . . . . Time . | . . . . . . Total Part Build Rating . | . . . . . . Parts Repaired . | . . . . . . Time . | . . . . . . Parts Recycled . | . . . . . . Recycled Matter . | . . . . . . Retrieved Matter . | . . . . . . Retrieved Components . | . . . . . . Parts Scanalyzed . | . . . . . . Part Schematics Acquired . | . . . . . . Parts Damaged . | . . . . . . Bothacking | -11 -10 -10 -8 -6 -6 ------------ Run | Yrd Mat Sub Rec Fac Gar Used RIF Installer 1 | . . . . . 1 Robots Hacked . | . . . . . . Non-combat . | . . . . . . Combat . | . . . . . . Robot Hacks Applied . | . . . . . . Relay Couplers Released 3 | . . . . . 3 Machine Destruction 3 | . . . . . 3 Fabnet Peak Effective % . | . . . . . . Robots Rewired . | . . . . . . Allies Hacked . | . . . . . . Hacks Repelled . | . . . . . . Allies | -11 -10 -10 -8 -6 -6 -------- Run | Yrd Mat Sub Rec Fac Gar Total Allies . | . . . . . . Largest Group . | . . . . . . Highest-Rated Group . | . . . . . . Highest-Rated Ally . | . . . . . . Total Orders . | . . . . . . Ally Attacks . | . . . . . . Total Damage . | . . . . . . Kills . | . . . . . . Allies Corrupted . | . . . . . . Allies Melted . | . . . . . . Intel | -11 -10 -10 -8 -6 -6 ------- Run | Yrd Mat Sub Rec Fac Gar Robot Analysis Total . | . . . . . . Derelict Logs Recovered . | . . . . . . Drone Launches . | . . . . . . Drone Recoveries . | . . . . . . Exploration | -11 -10 -10 -8 -6 -6 ------------- Run | Yrd Mat Sub Rec Fac Gar Turns Passed 5049 | 117 119 2664 1621 125 403 Spaces Moved 3434 | 43 65 1968 1086 95 177 Core 133 | . . . . . 133 Treads . | . . . . . . Legs 2385 | 43 65 1072 1066 95 44 Wheels 916 | . . 896 20 . . Hover . | . . . . . . Flight . | . . . . . . Fastest Speed 80 | 120 120 80 80 125 125 Average Speed 114 | 120 120 101 125 125 181 Slowest Speed 260 | 120 120 120 260 125 200 Overloaded Moves . | . . . . . . Propulsion Burnouts . | . . . . . . Robots Hopped . | . . . . . . Cave-ins Triggered . | . . . . . . Exploration Rate (%) 37 | 4 16 88 91 3 23 Regions Visited 5 Branch Regions 2 Pre-discovered Areas . | . . . . . . Known Exits Taken 1 | . . . . 1 . Unknown Exits Taken 4 | 1 1 1 1 . . Scrap Searched 2 | . . 2 . . . Spaces Dug 42 | . 2 2 37 . 1 Terrain Destroyed 45 | . 2 3 39 . 1 Melee 40 | . . 2 37 . 1 Projectile 5 | . 2 1 2 . . AOE . | . . . . . . Terrain Rammed . | . . . . . . Walls Destroyed . | . . . . . . Machines Disabled . | . . . . . . Actions | -11 -10 -10 -8 -6 -6 --------- Run | Yrd Mat Sub Rec Fac Gar Total 4296 | 91 93 2515 1254 101 242 Wait 630 | 35 24 461 73 . 37 Move 3430 | 42 64 1967 1085 95 177 Hop . | . . . . . . Pick Up 17 | 2 . 7 5 2 1 Fast Attach 1 | . . . 1 . . Attach 12 | . . 2 2 4 4 Detach 4 | . . . . . 4 Swap 18 | . 1 9 8 . . Drop 11 | 2 . 5 4 . . Fire 65 | 10 4 37 12 . 2 Melee 105 | . . 25 63 . 17 Ram . | . . . . . . Kick 1 | . . . 1 . . Crush . | . . . . . . Escape Stasis . | . . . . . . Rewire . | . . . . . . Trap 1 | . . 1 . . . Miscellaneous 1 | . . 1 . . . Route ------- -11/Scrapyard -10/Materials -10/Subcaves (discovered 3 exits: [*Mat x2] / *Rec) -8/Recycling -6/Factory -6/Garrison History --------- Turn | Location | Event 1 | -11/Scrapyard | Discovered new exit (range 3) 118 | -11/Scrapyard | Entered Materials 219 | -10/Materials | Discovered new exit (range 2) 237 | -10/Materials | Entered Subcaves 293 | -10/Subcaves | Shifting Twisted Machinery released Battle Cannon 298 | -10/Subcaves | Shifting Twisted Machinery released Sub. Monowheel 318 | -10/Subcaves | Build established: Mutant 498 | -10/Subcaves | Discovered new exit (range 14) 837 | -10/Subcaves | Visited 4L-MR0's lab 854 | -10/Subcaves | Found Powered Cannon 977 | -10/Subcaves | Released subatomizers from SUBCON Basin 1047 | -10/Subcaves | Discovered new exit (range 13) 1136 | -10/Subcaves | Shifting Twisted Machinery released Shrapnel Trap 1162 | -10/Subcaves | Shifting Twisted Machinery released Mak. Sword 2264 | -10/Subcaves | Shifting Twisted Machinery released Mak. Light Armor Plating 2268 | -10/Subcaves | Shifting Twisted Machinery released Shrapnel Trap 2859 | -10/Subcaves | Discovered new exit (range 15) 2901 | -10/Subcaves | Entered Recycling 3764 | -8/Recycling | Discovered new exit (range 16) 3904 | -8/Recycling | Core integrity fell below 50% 4522 | -8/Recycling | Entered Factory 4522 | -6/Factory | Evolved 8 slots: Utility x8 4583 | -6/Factory | Spotted B-75 Beast 4647 | -6/Factory | Identified exit to Garrison 4647 | -6/Factory | Entered Garrison 4743 | -6/Garrison | Triggered checkpoint 4799 | -6/Garrison | Lost 3 parts (2n1u) 4810 | -6/Garrison | Installed Relay Interface Framework 4842 | -6/Garrison | Garrison Relay disabled 5050 | -6/Garrison | Self-destructed Last Messages --------------- 04745_ S-27 Virus destroyed. 04761_ S-27 Virus Autogun severed. 04763_ Titanium Leg destroyed. 04763_ Acquired 23 matter. 04766_ Destroyed VTOL Module. 04768_ System Shield destroyed. 04768_ S-27 Virus destroyed. 04770_ Acquired 28 matter. Initiating installation procedure... 04810_ Relay Interface Framework installed. 04842_ Garrison Relay disabled. 04842_ Relay Coupler [NC] tumbles out of relay unit. 04842_ Relay Coupler [Duelist] tumbles out of relay unit. 04848_ Acquired Relay Coupler [Duelist]. 05029_ Triggered Alarm Trap. 05029_ An alarm sounds. 05044_ Mak. Sword destroyed. 05050_ Battle Cannon destroyed. Map ----- +----------------------------------------------------+ | | | | | | | | | | | ?????????????????????????????????????????????????? | | ?????????????????????????????????????????????????? | | ?????????????????????????????????????????????????? | | ?????????????????????????????????????????????????? | | ?????????????????????????????????????????????????? | | ?????????????????????????????????????????????????? | | ?????????????????????????????????????????????????? | | ?????????????????????????????????????????????????? | | ????????????????????????????????#######??????????? | | ????????????????????????????????# #??????????? | | ????????????????????????????????# #??????????? | | ????????????????????????????????# #??????????? | | ????????????????????????????????### #??????????? | | ??????????????????????????????????# #??????????? | | ??????????????????????????????????# #??????????? | | ??????????????????????????????????# #??????????? | | ??????????????????????????????????# #??????????? | | ??????????????????????????????????# #??????????? | | ??????????????????????????????????# !#??????????? | | ???????????????????????############ = ##?????????? | | ???????????????????????# @ ; #?????????? | | ???????????????????????#Y########## ##?????????? | | ???????????????????????#%#????????# #??????????? | | ????????????????????####/####?????# #??????????? | | ????????????????????#!! !!#?????# #????####### | | ????????????????????#!! !!#?????# #????# ! | | ??????????????????# + + #???# #????# | | ??????????????????###!! !!###???# #????# """"" | | ????????????????????#!! !!#?????# #????# ##### | | ????????????????????#########?????# #????# #???? | | ??????????????????????????????????# #??### ##### | | ??????????????????????????????????# #??# ## "" | | ??????????????????????????????????+ #??# | | ??????????????????????????????????# #??# ## "" | | ??????????????????????????????????# #??###[##### | | ????????????????????????????####### ######=#???? | | ????????????????????????????#" * [#???? | | ????????????????????????????## #### ########???? | | ?????????????????????????????# #??# #??????????? | | ?????????????????????????????# #??# #??????????? | | ?????????????????????????????# #??# #??????????? | | ?????????????????????????????# #??# #??????????? | | ?????????######""""########### #### #??????????? | | ??????? #??????????? | | ??????? #??????????? | +----------------------------------------------------+ Best States ------------- Heat Dissipation 37 Energy Generation 12 Energy Capacity 265 Matter Stores 300 Matter Capacity 300 Sight Range 22 Terrain Scan Density 10 Armor Coverage 100 Evasion (%) 55 Offensive Hacking 11 Defensive Hacking 10 Item Schematics ----------------- None Robot Schematics ------------------ None Fabricated ------------ Nothing Alien Tech Used ----------------- None Achievements -------------- None Challenges ------------ None Game ------ Seed RegenerativeFireGenerator Manual? 0 Play Time 00:26:12 Cumulative 73.0 hours Start 2024.08.26 @ 19:46:08 End 2024.08.26 @ 20:21:14 Sessions 1 Manual Loads 0 Difficulty Rogue Special Mode None Game No. 121 Rogue 117 Adventurer 4 Explorer 0 Win Type - Total 0 Types 0/0/0/0/0/0/0/0/0 Lore% 32 Gallery% 45 Achievement% 35 Wizard Run 0 Options --------- Layout 2 ASCII 0 Keyboard 0 Movement Mouse Keybinds 0 Fullscreen 2 Font 24/Smallcaps Map View 50x44 Zoom Use 0% Tactical HUD 1 Map Filters NONE Filters NONE Steam 1 RUN: 5da53c2f-1ef3-40dc-af7c-26d1892b8bec